[Event "Late-Titled-Tuesday-Blitz-June-25-2024"]
[Site "Chess.com"]
[Date "2024.06.25"]
[Round "3"]
[White "ncofre98"]
[Black "MuhittinBuker"]
[Result "1-0"]
[WhiteElo "2540"]
[BlackElo "2232"]
[TimeControl "180+1"]
[EndTime "14:25:08 PDT"]
[Termination "ncofre98 won by checkmate"]

1. e4 {[%clk 0:03:00.9]} 1... e5 {[%clk 0:02:46.4]} 2. Nf3 {[%clk 0:02:58.9]}
2... Nc6 {[%clk 0:02:45.9]} 3. Bb5 {[%clk 0:02:59.4]} 3... a6 {[%clk 0:02:44.1]}
4. Ba4 {[%clk 0:02:58.5]} 4... Nf6 {[%clk 0:02:44.3]} 5. d3 {[%clk 0:02:58.2]}
5... b5 {[%clk 0:02:43.7]} 6. Bb3 {[%clk 0:02:58]} 6... Be7 {[%clk 0:02:44.3]}
7. O-O {[%clk 0:02:57.5]} 7... d6 {[%clk 0:02:44.6]} 8. c3 {[%clk 0:02:56.8]}
8... O-O {[%clk 0:02:44.1]} 9. Re1 {[%clk 0:02:57.3]} 9... Na5 {[%clk
0:02:44.1]} 10. Bc2 {[%clk 0:02:57.1]} 10... c5 {[%clk 0:02:44.8]} 11. Nbd2
{[%clk 0:02:57.7]} 11... Qc7 {[%clk 0:02:45.2]} 12. Nf1 {[%clk 0:02:58.2]} 12...
Re8 {[%clk 0:02:44.2]} 13. Ng3 {[%clk 0:02:58.7]} 13... g6 {[%clk 0:02:44.5]}
14. d4 {[%clk 0:02:50.1]} 14... cxd4 {[%clk 0:02:39]} 15. cxd4 {[%clk
0:02:49.7]} 15... Nc6 {[%clk 0:02:39.5]} 16. Be3 {[%clk 0:02:41.6]} 16... Nb4
{[%clk 0:02:34.7]} 17. Bb3 {[%clk 0:02:35]} 17... a5 {[%clk 0:02:31.2]} 18. Rc1
{[%clk 0:02:27.8]} 18... Qb8 {[%clk 0:02:31.2]} 19. Ng5 {[%clk 0:02:18.8]} 19...
Rf8 {[%clk 0:02:29.7]} 20. a3 {[%clk 0:02:17.1]} 20... Na6 {[%clk 0:02:29.4]}
21. f4 {[%clk 0:01:52.8]} 21... a4 {[%clk 0:02:28.6]} 22. Ba2 {[%clk 0:01:51.5]}
22... Ng4 {[%clk 0:02:27.3]} 23. Nxf7 {[%clk 0:01:46.7]} 23... Rxf7 {[%clk
0:02:21]} 24. f5 {[%clk 0:01:32.2]} 24... Nxe3 {[%clk 0:02:20]} 25. Rxe3 {[%clk
0:01:30.9]} 25... Bg5 {[%clk 0:02:14.2]} 26. Rf3 {[%clk 0:01:30.6]} 26... Bxc1
{[%clk 0:01:56.4]} 27. fxg6 {[%clk 0:01:25.8]} 27... hxg6 {[%clk 0:01:56]} 28.
Rxf7 {[%clk 0:01:17.8]} 28... Be3+ {[%clk 0:01:54.4]} 29. Kh1 {[%clk 0:01:18.2]}
29... Kh8 {[%clk 0:01:44.7]} 30. Qf3 {[%clk 0:01:10.4]} 30... Bh6 {[%clk
0:01:20.5]} 31. Qf6+ {[%clk 0:01:08.6]} 31... Kg8 {[%clk 0:01:18]} 32. Rf8+
{[%clk 0:01:05]} 32... Kh7 {[%clk 0:01:17]} 33. Rh8# {[%clk 0:01:05.6]} 1-0

[Event "Late-Titled-Tuesday-Blitz-June-25-2024"]
[Site "Chess.com"]
[Date "2024.06.25"]
[Round "3"]
[White "Engima32"]
[Black "enriquebutti"]
[Result "0-1"]
[WhiteElo "2412"]
[BlackElo "2192"]
[TimeControl "180+1"]
[EndTime "14:25:16 PDT"]
[Termination "enriquebutti won by checkmate"]

1. e4 {[%clk 0:02:54.1]} 1... c5 {[%clk 0:02:59.5]} 2. d4 {[%clk 0:02:48.9]}
2... cxd4 {[%clk 0:02:58.8]} 3. Nf3 {[%clk 0:02:49.5]} 3... e6 {[%clk
0:02:56.6]} 4. Nxd4 {[%clk 0:02:49.7]} 4... Nf6 {[%clk 0:02:55.7]} 5. Nc3 {[%clk
0:02:50.2]} 5... d6 {[%clk 0:02:54.8]} 6. Qd3 {[%clk 0:02:50.3]} 6... Be7 {[%clk
0:02:47.2]} 7. Bg5 {[%clk 0:02:47.4]} 7... a6 {[%clk 0:02:44.5]} 8. a4 {[%clk
0:02:43.1]} 8... O-O {[%clk 0:02:41.6]} 9. f4 {[%clk 0:02:39.1]} 9... Nc6 {[%clk
0:02:33.5]} 10. O-O-O {[%clk 0:02:35.8]} 10... e5 {[%clk 0:02:26.3]} 11. Nxc6
{[%clk 0:02:18.5]} 11... bxc6 {[%clk 0:02:25.5]} 12. Qc4 {[%clk 0:02:17.1]}
12... Qc7 {[%clk 0:02:12.7]} 13. fxe5 {[%clk 0:02:15.4]} 13... dxe5 {[%clk
0:02:10.8]} 14. Bxf6 {[%clk 0:02:15.5]} 14... Bxf6 {[%clk 0:02:10]} 15. Kb1
{[%clk 0:02:15.7]} 15... Be6 {[%clk 0:02:05.4]} 16. Nd5 {[%clk 0:02:14.8]} 16...
Qd8 {[%clk 0:01:59.7]} 17. Nxf6+ {[%clk 0:02:14.4]} 17... Qxf6 {[%clk
0:01:58.8]} 18. Qc3 {[%clk 0:02:14.7]} 18... a5 {[%clk 0:01:49.6]} 19. Bd3
{[%clk 0:02:14]} 19... Rfb8 {[%clk 0:01:47.5]} 20. Ka1 {[%clk 0:02:11.9]} 20...
Rb4 {[%clk 0:01:42.8]} 21. b3 {[%clk 0:02:04.8]} 21... Rab8 {[%clk 0:01:37.7]}
22. Rb1 {[%clk 0:01:58.4]} 22... R8b6 {[%clk 0:01:22.7]} 23. Qc5 {[%clk
0:01:47.6]} 23... h6 {[%clk 0:01:21.7]} 24. Rhf1 {[%clk 0:01:47.4]} 24... Qg5
{[%clk 0:01:19.3]} 25. Qxa5 {[%clk 0:01:45.9]} 25... Qd2 {[%clk 0:01:09.6]} 26.
Qc5 {[%clk 0:01:45.1]} 26... Bxb3 {[%clk 0:01:04.9]} 27. cxb3 {[%clk 0:01:32.6]}
27... Qxd3 {[%clk 0:01:00.9]} 28. Rf3 {[%clk 0:01:28.7]} 28... Rxa4+ {[%clk
0:00:53.5]} 29. bxa4 {[%clk 0:01:28.3]} 29... Qxb1# {[%clk 0:00:51.6]} 0-1

[Event "Late-Titled-Tuesday-Blitz-June-25-2024"]
[Site "Chess.com"]
[Date "2024.06.25"]
[Round "3"]
[White "Arysya"]
[Black "Ykow"]
[Result "1-0"]
[WhiteElo "2842"]
[BlackElo "2558"]
[TimeControl "180+1"]
[EndTime "14:25:17 PDT"]
[Termination "Arysya won by resignation"]

1. e4 {[%clk 0:03:00.9]} 1... e5 {[%clk 0:02:59.1]} 2. Nf3 {[%clk 0:03:01]} 2...
Nc6 {[%clk 0:02:59.1]} 3. Nc3 {[%clk 0:03:01.9]} 3... Nf6 {[%clk 0:02:58.9]} 4.
g3 {[%clk 0:03:02.4]} 4... Bb4 {[%clk 0:02:50.7]} 5. Bg2 {[%clk 0:03:01.6]} 5...
Bxc3 {[%clk 0:02:49.4]} 6. dxc3 {[%clk 0:03:01.5]} 6... h6 {[%clk 0:02:48.2]} 7.
Nd2 {[%clk 0:03:01.3]} 7... d6 {[%clk 0:02:48]} 8. Nc4 {[%clk 0:03:00.8]} 8...
Bg4 {[%clk 0:02:45.7]} 9. Qd3 {[%clk 0:03:00.5]} 9... Qd7 {[%clk 0:02:38.9]} 10.
h3 {[%clk 0:03:00.8]} 10... Be6 {[%clk 0:02:39.6]} 11. Ne3 {[%clk 0:03:00.6]}
11... Ne7 {[%clk 0:02:37.2]} 12. b3 {[%clk 0:03:00.1]} 12... d5 {[%clk
0:02:31.5]} 13. exd5 {[%clk 0:02:57.7]} 13... Nexd5 {[%clk 0:02:30]} 14. c4
{[%clk 0:02:56.3]} 14... Nxe3 {[%clk 0:02:23.2]} 15. Qxe3 {[%clk 0:02:44.2]}
15... O-O {[%clk 0:02:12.4]} 16. Bb2 {[%clk 0:02:43.6]} 16... Rfe8 {[%clk
0:02:07.4]} 17. Rd1 {[%clk 0:02:43]} 17... Qc8 {[%clk 0:02:06.5]} 18. g4 {[%clk
0:02:43.1]} 18... Nd7 {[%clk 0:01:58.7]} 19. O-O {[%clk 0:02:35.9]} 19... c6
{[%clk 0:01:52.2]} 20. f4 {[%clk 0:02:35.8]} 20... exf4 {[%clk 0:01:48.2]} 21.
Qxf4 {[%clk 0:02:36.7]} 21... Qd8 {[%clk 0:01:44.8]} 22. Rd6 {[%clk 0:02:34.3]}
22... Qg5 {[%clk 0:01:37.4]} 23. Rxe6 {[%clk 0:02:25.4]} 23... fxe6 {[%clk
0:01:16.7]} 24. Qf7+ {[%clk 0:02:25.2]} 24... Kh8 {[%clk 0:01:17.6]} 25. Qxd7
{[%clk 0:02:26.1]} 25... Rad8 {[%clk 0:01:14.8]} 26. Qxb7 {[%clk 0:02:25.2]}
26... Rd2 {[%clk 0:01:14.7]} 27. Qxc6 {[%clk 0:02:21.2]} 27... Red8 {[%clk
0:01:10.1]} 28. Qe4 {[%clk 0:02:17]} 28... Qc5+ {[%clk 0:01:00.4]} 29. Kh1
{[%clk 0:02:14.1]} 29... Rf2 {[%clk 0:01:00.9]} 30. Qe5 {[%clk 0:01:45.4]} 30...
Rxf1+ {[%clk 0:00:33.8]} 31. Bxf1 {[%clk 0:01:45.3]} 31... Qxe5 {[%clk
0:00:34.1]} 32. Bxe5 {[%clk 0:01:45.4]} 32... Rd1 {[%clk 0:00:35]} 33. Kg1
{[%clk 0:01:43.3]} 33... Rd2 {[%clk 0:00:35.9]} 34. Bd3 {[%clk 0:01:42.2]} 1-0

[Event "Late-Titled-Tuesday-Blitz-June-25-2024"]
[Site "Chess.com"]
[Date "2024.06.25"]
[Round "3"]
[White "mac0504"]
[Black "Hikaru"]
[Result "0-1"]
[WhiteElo "2772"]
[BlackElo "3228"]
[TimeControl "180+1"]
[EndTime "14:25:18 PDT"]
[Termination "Hikaru won by resignation"]

1. c4 {[%clk 0:02:48.8]} 1... g6 {[%clk 0:02:58.3]} 2. Nc3 {[%clk 0:02:48.4]}
2... Bg7 {[%clk 0:02:58.4]} 3. d4 {[%clk 0:02:46.8]} 3... d6 {[%clk 0:02:58.6]}
4. e4 {[%clk 0:02:47]} 4... Nc6 {[%clk 0:02:58.8]} 5. Be3 {[%clk 0:02:44.7]}
5... e5 {[%clk 0:02:58.5]} 6. d5 {[%clk 0:02:41.3]} 6... Nce7 {[%clk 0:02:58.6]}
7. h4 {[%clk 0:02:37.7]} 7... f5 {[%clk 0:02:55.8]} 8. h5 {[%clk 0:02:32.7]}
8... f4 {[%clk 0:02:56.3]} 9. Bd2 {[%clk 0:02:32.7]} 9... g5 {[%clk 0:02:56.7]}
10. Be2 {[%clk 0:02:00.2]} 10... Nh6 {[%clk 0:02:52.5]} 11. Nf3 {[%clk 0:01:54]}
11... Neg8 {[%clk 0:02:43.8]} 12. Nh2 {[%clk 0:01:46.1]} 12... Nf6 {[%clk
0:02:43.6]} 13. g4 {[%clk 0:01:15.6]} 13... c6 {[%clk 0:02:43]} 14. Bf3 {[%clk
0:01:08.3]} 14... O-O {[%clk 0:02:42.7]} 15. O-O {[%clk 0:01:08.3]} 15... Qd7
{[%clk 0:02:40.8]} 16. dxc6 {[%clk 0:01:03.2]} 16... bxc6 {[%clk 0:02:40.8]} 17.
c5 {[%clk 0:00:58.4]} 17... d5 {[%clk 0:02:37.3]} 18. Qb3 {[%clk 0:00:54.9]}
18... Rd8 {[%clk 0:02:33.6]} 19. Rad1 {[%clk 0:00:49.3]} 19... Qf7 {[%clk
0:02:32.3]} 20. Rfe1 {[%clk 0:00:40.8]} 20... d4 {[%clk 0:02:28.7]} 21. Qxf7+
{[%clk 0:00:34.7]} 21... Kxf7 {[%clk 0:02:29.6]} 22. Na4 {[%clk 0:00:33.9]}
22... Nhxg4 {[%clk 0:02:29.8]} 23. Nxg4 {[%clk 0:00:30.7]} 23... Bxg4 {[%clk
0:02:29.7]} 24. Bxg4 {[%clk 0:00:30.1]} 24... Nxg4 {[%clk 0:02:30.6]} 25. Kg2
{[%clk 0:00:24.7]} 25... Nf6 {[%clk 0:02:30.8]} 26. b4 {[%clk 0:00:23]} 26...
Nxh5 {[%clk 0:02:29.7]} 27. Nb2 {[%clk 0:00:21.2]} 27... Nf6 {[%clk 0:02:28.8]}
28. Nc4 {[%clk 0:00:21.7]} 28... Ke6 {[%clk 0:02:29.1]} 29. Nd6 {[%clk
0:00:20.9]} 29... Bf8 {[%clk 0:02:26.2]} 30. Nf5 {[%clk 0:00:20.8]} 30... Nxe4
{[%clk 0:02:21.1]} 31. Rxe4 {[%clk 0:00:17.9]} 31... Kxf5 {[%clk 0:02:21.3]} 32.
Rde1 {[%clk 0:00:17.8]} 32... Bg7 {[%clk 0:02:21.6]} 33. f3 {[%clk 0:00:16]}
33... h5 {[%clk 0:02:21.5]} 34. a4 {[%clk 0:00:15.7]} 34... a6 {[%clk
0:02:21.1]} 35. Rh1 {[%clk 0:00:11.7]} 35... Rh8 {[%clk 0:02:19.5]} 36. Kf2
{[%clk 0:00:09]} 36... g4 {[%clk 0:02:19.6]} 37. Ke2 {[%clk 0:00:09.3]} 37... h4
{[%clk 0:02:19.3]} 38. Kd3 {[%clk 0:00:05.2]} 38... g3 {[%clk 0:02:19.3]} 0-1

[Event "Late-Titled-Tuesday-Blitz-June-25-2024"]
[Site "Chess.com"]
[Date "2024.06.25"]
[Round "3"]
[White "Statham_01"]
[Black "jup1978"]
[Result "1-0"]
[WhiteElo "2712"]
[BlackElo "2479"]
[TimeControl "180+1"]
[EndTime "14:25:20 PDT"]
[Termination "Statham_01 won by resignation"]

1. e4 {[%clk 0:03:00.9]} 1... c6 {[%clk 0:02:59.2]} 2. d4 {[%clk 0:02:59.1]}
2... d5 {[%clk 0:03:00.1]} 3. f3 {[%clk 0:02:58.4]} 3... e6 {[%clk 0:02:58.2]}
4. Nc3 {[%clk 0:02:58.2]} 4... Nf6 {[%clk 0:02:53.7]} 5. e5 {[%clk 0:02:58.1]}
5... Nfd7 {[%clk 0:02:54.3]} 6. f4 {[%clk 0:02:58.8]} 6... c5 {[%clk 0:02:54.9]}
7. Nf3 {[%clk 0:02:59.4]} 7... Nc6 {[%clk 0:02:55.4]} 8. Be3 {[%clk 0:03:00]}
8... cxd4 {[%clk 0:02:55.9]} 9. Nxd4 {[%clk 0:03:00.9]} 9... Qb6 {[%clk
0:02:56.2]} 10. Ncb5 {[%clk 0:02:55.1]} 10... Nxd4 {[%clk 0:02:37.7]} 11. Bxd4
{[%clk 0:02:54.1]} 11... Bc5 {[%clk 0:02:37]} 12. Nd6+ {[%clk 0:02:53.9]} 12...
Ke7 {[%clk 0:02:35]} 13. Bxc5 {[%clk 0:02:25.7]} 13... Qxc5 {[%clk 0:02:35.9]}
14. Qh5 {[%clk 0:02:19.4]} 14... Rf8 {[%clk 0:02:10]} 15. Qg5+ {[%clk
0:02:16.4]} 15... f6 {[%clk 0:02:02.8]} 16. Qxg7+ {[%clk 0:02:16.1]} 16... Kd8
{[%clk 0:01:59]} 17. O-O-O {[%clk 0:02:04.4]} 17... Qe3+ {[%clk 0:01:50.5]} 18.
Kb1 {[%clk 0:02:03.3]} 18... Qxf4 {[%clk 0:01:51]} 19. Bb5 {[%clk 0:01:58.7]}
19... Qg5 {[%clk 0:01:31.3]} 20. Nxb7+ {[%clk 0:01:01.9]} 20... Kc7 {[%clk
0:01:24.6]} 21. Qe7 {[%clk 0:01:01.9]} 21... Bxb7 {[%clk 0:01:08.9]} 22. Qd6+
{[%clk 0:00:57.9]} 22... Kc8 {[%clk 0:01:01.8]} 23. Bxd7+ {[%clk 0:00:58.1]}
23... Kd8 {[%clk 0:00:59.4]} 24. Bxe6+ {[%clk 0:00:58.6]} 1-0

[Event "Late-Titled-Tuesday-Blitz-June-25-2024"]
[Site "Chess.com"]
[Date "2024.06.25"]
[Round "3"]
[White "KnightmareJoker"]
[Black "Flaccidmoves"]
[Result "0-1"]
[WhiteElo "2287"]
[BlackElo "2539"]
[TimeControl "180+1"]
[EndTime "14:25:20 PDT"]
[Termination "Flaccidmoves won by resignation"]

1. e4 {[%clk 0:02:57.9]} 1... Nf6 {[%clk 0:03:00.4]} 2. e5 {[%clk 0:02:56.5]}
2... Nd5 {[%clk 0:02:59.5]} 3. d4 {[%clk 0:02:56.9]} 3... d6 {[%clk 0:02:59.5]}
4. c4 {[%clk 0:02:57.4]} 4... Nb6 {[%clk 0:02:59.1]} 5. exd6 {[%clk 0:02:56.9]}
5... cxd6 {[%clk 0:02:58.4]} 6. Nc3 {[%clk 0:02:57.5]} 6... g6 {[%clk
0:02:58.1]} 7. Nf3 {[%clk 0:02:57.9]} 7... Bg7 {[%clk 0:02:58.6]} 8. Be3 {[%clk
0:02:58.1]} 8... O-O {[%clk 0:02:59.1]} 9. Be2 {[%clk 0:02:57.2]} 9... Nc6
{[%clk 0:02:59.1]} 10. O-O {[%clk 0:02:57.2]} 10... Bg4 {[%clk 0:02:59.2]} 11.
b3 {[%clk 0:02:55.2]} 11... d5 {[%clk 0:02:55.2]} 12. c5 {[%clk 0:02:51.6]}
12... Nc8 {[%clk 0:02:55.3]} 13. h3 {[%clk 0:02:50.6]} 13... Bxf3 {[%clk
0:02:54.8]} 14. Bxf3 {[%clk 0:02:50.5]} 14... e6 {[%clk 0:02:55.5]} 15. a3
{[%clk 0:02:50.5]} 15... N8e7 {[%clk 0:02:55.4]} 16. b4 {[%clk 0:02:50.8]} 16...
Nf5 {[%clk 0:02:55.1]} 17. b5 {[%clk 0:02:49.8]} 17... Ncxd4 {[%clk 0:02:54.8]}
18. Bxd4 {[%clk 0:02:48.5]} 18... Nxd4 {[%clk 0:02:54.6]} 19. Qd3 {[%clk
0:02:47.3]} 19... Rc8 {[%clk 0:02:43.4]} 20. Na4 {[%clk 0:02:24.8]} 20... Nxf3+
{[%clk 0:02:41.7]} 21. Qxf3 {[%clk 0:02:22.4]} 21... Bxa1 {[%clk 0:02:42.2]} 22.
Rxa1 {[%clk 0:02:18.6]} 22... e5 {[%clk 0:02:42.7]} 23. Rd1 {[%clk 0:02:17.4]}
23... d4 {[%clk 0:02:42.5]} 24. Qb3 {[%clk 0:02:14.4]} 24... Qe7 {[%clk
0:02:35.3]} 25. Re1 {[%clk 0:02:07.9]} 25... Rfe8 {[%clk 0:02:30.9]} 26. f4
{[%clk 0:02:07.8]} 26... e4 {[%clk 0:02:30.4]} 27. Qc4 {[%clk 0:02:07.3]} 27...
d3 {[%clk 0:02:27.7]} 28. Nc3 {[%clk 0:02:02]} 28... Qxc5+ {[%clk 0:02:16.4]}
29. Qxc5 {[%clk 0:01:59.4]} 29... Rxc5 {[%clk 0:02:17.3]} 30. Rxe4 {[%clk
0:01:58]} 30... Rd8 {[%clk 0:02:01.9]} 31. Nd1 {[%clk 0:01:51.6]} 31... Rc1
{[%clk 0:01:53.2]} 32. Re1 {[%clk 0:01:51.3]} 32... d2 {[%clk 0:01:53.8]} 33.
Rf1 {[%clk 0:01:51.1]} 33... Re8 {[%clk 0:01:38.4]} 34. Kf2 {[%clk 0:01:49.3]}
34... f5 {[%clk 0:01:31.8]} 35. a4 {[%clk 0:01:46.7]} 35... b6 {[%clk
0:01:31.1]} 36. g3 {[%clk 0:01:45.8]} 36... h6 {[%clk 0:01:30.4]} 37. g4 {[%clk
0:01:42]} 37... fxg4 {[%clk 0:01:26.5]} 38. hxg4 {[%clk 0:01:42.9]} 38... Kg7
{[%clk 0:01:26.2]} 39. f5 {[%clk 0:01:41]} 39... gxf5 {[%clk 0:01:25.8]} 40.
gxf5 {[%clk 0:01:41.9]} 40... Kf6 {[%clk 0:01:25.8]} 41. a5 {[%clk 0:01:33.6]}
41... bxa5 {[%clk 0:01:24.8]} 42. Rh1 {[%clk 0:01:34.1]} 42... Re1 {[%clk
0:01:17.6]} 43. Rxe1 {[%clk 0:01:34.2]} 43... dxe1=Q+ {[%clk 0:01:17.1]} 44.
Kxe1 {[%clk 0:01:35.1]} 44... h5 {[%clk 0:01:14.5]} 45. Ke2 {[%clk 0:01:35]}
45... Rxd1 {[%clk 0:01:12.6]} 46. Kxd1 {[%clk 0:01:35.1]} 46... a4 {[%clk
0:01:13.1]} 0-1

[Event "Late-Titled-Tuesday-Blitz-June-25-2024"]
[Site "Chess.com"]
[Date "2024.06.25"]
[Round "3"]
[White "JiangoFett"]
[Black "Duhless"]
[Result "0-1"]
[WhiteElo "2522"]
[BlackElo "3097"]
[TimeControl "180+1"]
[EndTime "14:25:24 PDT"]
[Termination "Duhless won by resignation"]

1. c4 {[%clk 0:03:00.9]} 1... b6 {[%clk 0:02:52.5]} 2. Nc3 {[%clk 0:02:58.2]}
2... c5 {[%clk 0:02:51]} 3. Nf3 {[%clk 0:02:54.1]} 3... Bb7 {[%clk 0:02:50.4]}
4. g3 {[%clk 0:02:54.9]} 4... Bxf3 {[%clk 0:02:49.9]} 5. exf3 {[%clk 0:02:55.8]}
5... Nc6 {[%clk 0:02:49.7]} 6. Bg2 {[%clk 0:02:55.1]} 6... g6 {[%clk 0:02:50.3]}
7. O-O {[%clk 0:02:52.3]} 7... Bg7 {[%clk 0:02:50.8]} 8. f4 {[%clk 0:02:46.8]}
8... Nh6 {[%clk 0:02:51.2]} 9. Re1 {[%clk 0:02:40]} 9... Nf5 {[%clk 0:02:50]}
10. d3 {[%clk 0:02:25.3]} 10... O-O {[%clk 0:02:49]} 11. Nd5 {[%clk 0:02:19.7]}
11... e6 {[%clk 0:02:41]} 12. Ne3 {[%clk 0:02:19.2]} 12... Nfd4 {[%clk
0:02:39.7]} 13. Rb1 {[%clk 0:02:18.8]} 13... Rb8 {[%clk 0:02:36.3]} 14. a3
{[%clk 0:02:18.8]} 14... b5 {[%clk 0:02:36.2]} 15. cxb5 {[%clk 0:01:47.7]} 15...
Rxb5 {[%clk 0:02:37.1]} 16. Bd2 {[%clk 0:01:40.8]} 16... d5 {[%clk 0:02:34.5]}
17. Bc3 {[%clk 0:01:25.2]} 17... Qc7 {[%clk 0:02:31.9]} 18. Qa4 {[%clk
0:01:12.4]} 18... Rfb8 {[%clk 0:02:30.2]} 19. Rbc1 {[%clk 0:01:12.8]} 19... Nb3
{[%clk 0:02:26.7]} 20. Bxg7 {[%clk 0:00:33.6]} 20... Kxg7 {[%clk 0:02:26.5]} 21.
Rcd1 {[%clk 0:00:20.2]} 21... Ncd4 {[%clk 0:02:19.1]} 22. f5 {[%clk 0:00:14.9]}
22... gxf5 {[%clk 0:02:17.3]} 23. Bxd5 {[%clk 0:00:11.9]} 23... exd5 {[%clk
0:02:09.2]} 24. Nxd5 {[%clk 0:00:12.8]} 24... Qb7 {[%clk 0:02:00.5]} 25. Qc4
{[%clk 0:00:12.2]} 25... Na5 {[%clk 0:01:58.4]} 26. Re7 {[%clk 0:00:07.5]} 26...
Nxc4 {[%clk 0:01:48.8]} 27. Rxb7 {[%clk 0:00:07.2]} 27... R5xb7 {[%clk
0:01:49.3]} 28. dxc4 {[%clk 0:00:08.1]} 28... Rxb2 {[%clk 0:01:49.8]} 0-1

[Event "Late-Titled-Tuesday-Blitz-June-25-2024"]
[Site "Chess.com"]
[Date "2024.06.25"]
[Round "3"]
[White "FairChess_on_YouTube"]
[Black "NikitaShnadrygin"]
[Result "1-0"]
[WhiteElo "3091"]
[BlackElo "2732"]
[TimeControl "180+1"]
[EndTime "14:25:26 PDT"]
[Termination "FairChess_on_YouTube won by resignation"]

1. d4 {[%clk 0:03:00.9]} 1... d5 {[%clk 0:02:59.8]} 2. c4 {[%clk 0:03:00.3]}
2... Nc6 {[%clk 0:03:00.7]} 3. Nc3 {[%clk 0:02:57.2]} 3... dxc4 {[%clk 0:03:00]}
4. d5 {[%clk 0:02:56.9]} 4... Ne5 {[%clk 0:03:00.4]} 5. Nf3 {[%clk 0:02:56.5]}
5... Nxf3+ {[%clk 0:02:58]} 6. exf3 {[%clk 0:02:57.3]} 6... e5 {[%clk
0:02:52.7]} 7. Bxc4 {[%clk 0:02:52]} 7... Bd6 {[%clk 0:02:52.5]} 8. O-O {[%clk
0:02:46.7]} 8... Nf6 {[%clk 0:02:48.2]} 9. Bg5 {[%clk 0:02:45.8]} 9... h6 {[%clk
0:02:44]} 10. Bb5+ {[%clk 0:02:44.3]} 10... Kf8 {[%clk 0:02:40.8]} 11. Bxf6
{[%clk 0:02:41.3]} 11... gxf6 {[%clk 0:02:36]} 12. Ne4 {[%clk 0:02:41.5]} 12...
Bf5 {[%clk 0:01:59.4]} 13. Bd3 {[%clk 0:02:40.9]} 13... Bxe4 {[%clk 0:01:54.8]}
14. Bxe4 {[%clk 0:02:41.8]} 14... Qe7 {[%clk 0:01:53.5]} 15. Rc1 {[%clk
0:02:40]} 15... Rg8 {[%clk 0:01:50.6]} 16. Qd3 {[%clk 0:02:37.3]} 16... f5
{[%clk 0:01:38.6]} 17. Bxf5 {[%clk 0:02:36.3]} 17... Qh4 {[%clk 0:01:39]} 18. g3
{[%clk 0:02:33.5]} 18... Qg5 {[%clk 0:01:36.1]} 19. Rc4 {[%clk 0:02:31.8]} 19...
Re8 {[%clk 0:01:28.9]} 20. Rg4 {[%clk 0:02:28.6]} 20... Qf6 {[%clk 0:01:29.1]}
21. Qe4 {[%clk 0:02:22.1]} 21... Rg5 {[%clk 0:01:27.1]} 22. Rxg5 {[%clk
0:02:21.4]} 22... hxg5 {[%clk 0:01:26.6]} 23. Kg2 {[%clk 0:02:20.2]} 23... Kg7
{[%clk 0:01:25.4]} 24. Qg4 {[%clk 0:02:06.5]} 24... Kf8 {[%clk 0:00:52.2]} 25.
Rc1 {[%clk 0:02:04.1]} 25... e4 {[%clk 0:00:38.8]} 26. fxe4 {[%clk 0:02:02.5]}
26... Qxb2 {[%clk 0:00:39.4]} 27. Qxg5 {[%clk 0:02:02]} 27... Qxa2 {[%clk
0:00:34.8]} 28. Qh6+ {[%clk 0:01:55]} 28... Ke7 {[%clk 0:00:34.4]} 29. Qg5+
{[%clk 0:01:53.4]} 29... Kf8 {[%clk 0:00:34.4]} 30. Rc3 {[%clk 0:01:53.5]} 30...
Qb2 {[%clk 0:00:26.3]} 31. Qh6+ {[%clk 0:01:52.9]} 31... Ke7 {[%clk 0:00:24.9]}
32. Qh4+ {[%clk 0:01:52.8]} 32... Kf8 {[%clk 0:00:23.7]} 33. Qh8+ {[%clk
0:01:52.6]} 1-0

[Event "Late-Titled-Tuesday-Blitz-June-25-2024"]
[Site "Chess.com"]
[Date "2024.06.25"]
[Round "3"]
[White "lluiss"]
[Black "szachmistrz2500"]
[Result "1-0"]
[WhiteElo "2251"]
[BlackElo "2457"]
[TimeControl "180+1"]
[EndTime "14:25:28 PDT"]
[Termination "lluiss won by resignation"]

1. Nf3 {[%clk 0:03:00.9]} 1... c5 {[%clk 0:02:59]} 2. c4 {[%clk 0:03:00]} 2...
g6 {[%clk 0:02:58.4]} 3. d4 {[%clk 0:02:59]} 3... cxd4 {[%clk 0:02:57.9]} 4.
Nxd4 {[%clk 0:02:58.4]} 4... Bg7 {[%clk 0:02:57.3]} 5. e4 {[%clk 0:02:58.3]}
5... Nc6 {[%clk 0:02:57.1]} 6. Be3 {[%clk 0:02:57.1]} 6... Nf6 {[%clk
0:02:55.9]} 7. Nc3 {[%clk 0:02:56.1]} 7... Nxd4 {[%clk 0:02:55.5]} 8. Bxd4
{[%clk 0:02:55.5]} 8... d6 {[%clk 0:02:55.2]} 9. Be2 {[%clk 0:02:54.7]} 9... O-O
{[%clk 0:02:55.2]} 10. O-O {[%clk 0:02:54.7]} 10... a5 {[%clk 0:02:55.6]} 11. f3
{[%clk 0:02:41.6]} 11... Be6 {[%clk 0:02:54.3]} 12. Qd2 {[%clk 0:02:38]} 12...
Nd7 {[%clk 0:02:54]} 13. Be3 {[%clk 0:02:34.8]} 13... a4 {[%clk 0:02:53.3]} 14.
Rfd1 {[%clk 0:02:25.9]} 14... a3 {[%clk 0:02:52.1]} 15. b3 {[%clk 0:02:22.2]}
15... Qa5 {[%clk 0:02:52]} 16. Rac1 {[%clk 0:02:20.4]} 16... Nc5 {[%clk
0:02:40.4]} 17. Nd5 {[%clk 0:01:46.5]} 17... Bxd5 {[%clk 0:02:39.2]} 18. b4
{[%clk 0:01:37.9]} 18... Nxe4 {[%clk 0:02:30.4]} 19. fxe4 {[%clk 0:01:34.6]}
19... Qd8 {[%clk 0:02:16.6]} 20. cxd5 {[%clk 0:01:33.8]} 20... Bb2 {[%clk
0:02:13.6]} 21. Rc2 {[%clk 0:01:32.7]} 21... Qd7 {[%clk 0:02:13.8]} 22. Rxb2
{[%clk 0:01:21.1]} 22... axb2 {[%clk 0:02:13.4]} 23. Qxb2 {[%clk 0:01:22]} 23...
Qa4 {[%clk 0:02:11.8]} 24. Bh6 {[%clk 0:01:19.2]} 24... f6 {[%clk 0:02:08.5]}
25. Bxf8 {[%clk 0:01:19]} 25... Kxf8 {[%clk 0:02:08.6]} 26. Qb3 {[%clk
0:01:10.3]} 26... Qxa2 {[%clk 0:02:07]} 27. Qxa2 {[%clk 0:01:04.4]} 27... Rxa2
{[%clk 0:02:07.9]} 28. Bf1 {[%clk 0:01:02.2]} 28... Rb2 {[%clk 0:02:07]} 29. b5
{[%clk 0:01:02.2]} 29... f5 {[%clk 0:02:01.1]} 30. exf5 {[%clk 0:01:00.8]} 30...
gxf5 {[%clk 0:02:01.2]} 31. Rc1 {[%clk 0:00:54.4]} 31... Rd2 {[%clk 0:02:01]}
32. Rc8+ {[%clk 0:00:52.1]} 32... Kg7 {[%clk 0:02:00.3]} 33. Rc7 {[%clk
0:00:52.7]} 33... Kf6 {[%clk 0:02:00.7]} 34. Rxb7 {[%clk 0:00:50.7]} 34... Rxd5
{[%clk 0:02:00.9]} 35. Rb8 {[%clk 0:00:45.9]} 35... Rd1 {[%clk 0:02:00]} 36. b6
{[%clk 0:00:42.5]} 36... Rb1 {[%clk 0:02:00.2]} 37. b7 {[%clk 0:00:42.4]} 37...
Ke5 {[%clk 0:02:00.7]} 38. Kf2 {[%clk 0:00:40.5]} 38... Rb2+ {[%clk 0:02:00.7]}
39. Kg3 {[%clk 0:00:39.4]} 39... Rb3+ {[%clk 0:01:58.4]} 40. Kh4 {[%clk
0:00:38.3]} 40... Rb1 {[%clk 0:01:45.1]} 41. Ba6 {[%clk 0:00:37.5]} 1-0